Cogmind - Beta 9.6 @@@ ROGUE MODE // 2020.05.31 @ 17:46:59 Player: BOBIT Result: Destroyed by G-34 Mercenary with Small Laser Performance ------------- Evolutions (1) 500 Regions Visited (4) 800 Robots Destroyed (22) 110 Value Destroyed (874) 874 Prototype IDs (8) 160 Alien Tech Used (0) 0 Bonus (400) 400 TOTAL SCORE: 2844 Bonus ------- Pacifist 200 Entered Garrisons 200 Cogmind --------- Core Integrity 0/400 Matter 280/300 Energy 59/100 System Corruption 1% Temperature Cool (6) Movement Core (50) Location -9/Garrison Parts ------- > --- POWER (1) -------- (None) > --- PROPULSION (2) --- (None) > --- UTILITY (2) ------ Terrain Scan Processor ECM Suite > --- WEAPON (4) ------- (None) > --- INVENTORY (4) ---- Improved Flight Unit Relay Coupler [NC] (29) Relay Coupler [NC] (24) Relay Coupler [Brawler] (27) Peak State ------------ > --- POWER ------------ Cooled Ion Engine > --- PROPULSION ------- Improved Flight Unit Improved Flight Unit > --- UTILITY ---------- Terrain Scan Processor > --- WEAPON ----------- Improved EM Shotgun Improved Medium Laser Advanced Beam Cannon Maul > --- INVENTORY -------- Terrain Scan Processor Terrain Scan Processor Hardened Light Armor Plating Improved Assault Rifle [Rating: 22] Favorites ----------- Power Light Ion Engine Engine Light Ion Engine Reactor Cold Fusion Reactor Propulsion Light Treads Treads Light Treads Leg Aluminum Leg Flight Unit Improved Flight Unit Utility Terrain Scan Processor Device Improved Terrain Scanner Storage Small Storage Unit Processor Terrain Scan Processor Weapon Assault Rifle Energy Gun Medium Laser Energy Cannon Beam Cannon Ballistic Gun Assault Rifle Launcher Grenade Launcher Impact Weapon Maul Build | -11 -10 -9 -9 -9 ------- Run | Scr Mat Mat Sto Gar Slots Evolved 2 | . . 2 . . Power . | . . . . . Propulsion . | . . . . . Utility . | . . . . . Weapon 2 | . . 2 . . Parts Attached 41 | 7 . 2 30 2 Power 8 | 1 . . 7 . Engine 7 | 1 . . 6 . Core . | . . . . . Reactor 1 | . . . 1 . Propulsion 10 | 2 . . 6 2 Treads 3 | 2 . . 1 . Leg 3 | . . . 3 . Wheel . | . . . . . Hover . | . . . . . Flight 4 | . . . 2 2 Utility 6 | 1 . . 5 . Device 4 | . . . 4 . Storage 1 | 1 . . . . Processor 1 | . . . 1 . Hackware . | . . . . . Protection . | . . . . . Artifact . | . . . . . Weapon 17 | 3 . 2 12 . Energy Gun 6 | 1 . . 5 . Energy Cannon 3 | . . 1 2 . Ballistic Gun 6 | 2 . 1 3 . Ballistic Cannon . | . . . . . Launcher 1 | . . . 1 . Special Weapon . | . . . . . Impact Weapon 1 | . . . 1 . Slashing Weapon . | . . . . . Piercing Weapon . | . . . . . Special Melee Weapon . | . . . . . Unidentified Prototypes 8 | . . . 8 . Parts Lost 10 | . . . 8 2 Power . | . . . . . Propulsion 2 | . . . . 2 Utility 1 | . . . 1 . Weapon 7 | . . . 7 . Highest Loss Streak 3 | . . . 3 2 Average Slot Usage (%) 80 | . 85 88 82 57 Engine 9 | . 14 11 9 6 Treads 11 | . 28 22 8 . Leg 7 | . . . 9 . Flight 4 | . . . 3 19 Device 5 | . . . 6 11 Storage 4 | . 14 11 3 . Processor 6 | . . . 7 11 Energy Gun 9 | . 14 11 10 . Energy Cannon 2 | . . 11 3 . Ballistic Gun 10 | . 14 22 10 . Launcher 2 | . . . 3 . Impact Weapon 4 | . . . 4 9 Naked Turns . | . . . . . Heaviest Build 18 | 11 11 16 18 12 Greatest Support 43 | 40 40 40 43 12 Greatest Overweight (x) 2 | . . . 2 1 Average Overweight (x) . | . . . . . Largest Inventory Capacity 6 | 6 6 6 6 4 Average Capacity 4 | 5 6 6 4 4 Most Carried 6 | 6 6 5 6 4 Average Carried 4 | 2 5 4 4 3 Final Capacity 6 | 6 6 6 4 4 Final Carried 6 | 6 6 4 4 4 Class Distribution -------------------- 39% | Mutant 19% | Gunner 16% | Sprinter 12% | Scavenger-Skirmisher 11% | Scavenger-Mutant Dominant Class ---------------- Mutant | -10/Materials Gunner | -9/Materials Gunner | -9/Storage Mutant | -9/Garrison Resources | -11 -10 -9 -9 -9 ----------- Run | Scr Mat Mat Sto Gar Matter Collected 789 | 163 . . 626 . Remotely . | . . . . . Salvage Created 784 | . . . 784 . Parts 49 | . . . 49 . Haulers Intercepted 2 | . . . 2 . Recyclers Shooed . | . . . . . Parts Field Recycled . | . . . . . Retrieved Matter . | . . . . . Parts Self-Destructed . | . . . . . Prevented . | . . . . . Kills | -11 -10 -9 -9 -9 ------- Run | Scr Mat Mat Sto Gar Combat Hostiles Destroyed 17 | . . . 17 . Melee 1 | . . . 1 . Guns 7 | . . . 7 . Cannons 4 | . . . 4 . AOE 4 | . . . 4 . Classes Destroyed 7 | . . . 7 . Worker 1 | . . . 1 . Builder 1 | . . . 1 . Hauler 2 | . . . 2 . Watcher 1 | . . . 1 . Swarmer 3 | . . . 3 . Grunt 5 | . . . 5 . Sentry 9 | . . . 9 . Best Kill Streak 8 | . . . 8 . Combat Bots Only 3 | . . . 3 . Max Kills in Single Turn 2 | . . . 2 . Gunslinging . | . . . . . Exploded 1 | . . . 1 . Melee 1 | . . . 1 . Uniques/NPCs Destroyed . | . . . . . Combat | -11 -10 -9 -9 -9 -------- Run | Scr Mat Mat Sto Gar Damage Taken 1570 | . . . 1187 383 Core 404 | . . . 188 216 Absorbed by Shields 43 | . . . . 43 Core Remaining (%) 100 | 100 100 . . . Volleys Fired 40 | . 1 . 39 . Largest 4 | . 2 . 4 . Hottest 190 | . 70 . 190 . Shots Fired 106 | . 2 . 104 . Gun 83 | . 2 . 81 . Cannon 13 | . . . 13 . Launcher 10 | . . . 10 . Special . | . . . . . Kinetic 43 | . 1 . 42 . Thermal 31 | . 1 . 30 . Explosive 10 | . . . 10 . Electromagnetic 22 | . . . 22 . Robot Hit Streak 13 | . 1 . 13 . Robot Miss Streak 2 | . 1 . 2 . Penetration Max . | . . . . . Secondary Targets . | . . . . . Shots Hit Robots 57 | . 1 . 56 . Core Hits 37 | . . . 37 . Critical Hits . | . . . . . Critical Kills . | . . . . . Critical Parts Destroyed . | . . . . . Melee Attacks 14 | . . . 13 1 Impact 14 | . . . 13 1 Slashing . | . . . . . Piercing . | . . . . . Sneak Attacks . | . . . . . Combat Hostiles . | . . . . . Follow-up Attacks . | . . . . . Damage Inflicted 1147 | . . . 1147 . Guns 475 | . . . 475 . Cannons 157 | . . . 157 . Explosions 301 | . . . 301 . Melee 214 | . . . 214 . Ramming . | . . . . . Kinetic 195 | . . . 195 . Thermal 204 | . . . 204 . Explosive 301 | . . . 301 . Electromagnetic 233 | . . . 233 . Impact 214 | . . . 214 . Slashing . | . . . . . Piercing . | . . . . . Highest Corruption 1 | . . . 1 1 Average Corruption 1 | . . . 1 1 Corruption Purged . | . . . . . Effects 2 | . . . 1 1 Message Errors 1 | . . . . 1 Energy Discharges 1 | . . . 1 . Overload Shots . | . . . . . Overflow Damage 18 | . . . 18 . Projectiles . | . . . . . Explosions . | . . . . . Melee 18 | . . . 18 . Knockbacks 1 | . . . 1 . Impact 1 | . . . 1 . Kinetic . | . . . . . Secondary . | . . . . . Self-Inflicted Damage . | . . . . . Shots . | . . . . . Rammed . | . . . . . Targets Rammed . | . . . . . Kicked . | . . . . . Crushed . | . . . . . Highest Temperature 256 | . 9 . 256 . Average Temperature 82 | . 6 . 84 . Received Heat Transfer 429 | . . . 390 39 Siege Activations . | . . . . . Robots Corrupted . | . . . . . Combat Hostiles . | . . . . . Parts Fried 5 | . . . 5 . Impact Corruptions 2 | . . . 2 . Robots Melted . | . . . . . Combat Hostiles . | . . . . . Parts Melted 1 | . . . 1 . Heat Transferred 457 | . . . 457 . Parts Sabotaged . | . . . . . Parts Stolen . | . . . . . Parts Stripped . | . . . . . Power Chain Reactions . | . . . . . Missiles Intercepted . | . . . . . Alert | -11 -10 -9 -9 -9 ------- Run | Scr Mat Mat Sto Gar Peak Influence 394 | . 15 5 394 138 Average Influence 169 | . 9 5 234 94 Maximum Alert Level 1 | . . . 1 . Low Security (%) 50 | 100 100 100 27 100 Level 1 49 | . . . 72 . Level 2 . | . . . . . Level 3 . | . . . . . Level 4 . | . . . . . Level 5 . | . . . . . High Security . | . . . . . Max Security . | . . . . . Squads Dispatched 2 | . . . 2 . Investigation . | . . . . . Extermination . | . . . . . Reinforcement 2 | . . . 2 . Assault . | . . . . . Garrison . | . . . . . Intercept . | . . . . . Construction Impeded 1 | . . . 1 . Haulers Reinforced . | . . . . . Stealth | -11 -10 -9 -9 -9 --------- Run | Scr Mat Mat Sto Gar Distress Signals 1 | . . . 1 . Communications Jammed . | . . . . . Distress Signals . | . . . . . Times Spotted 43 | . 1 . 24 18 Peak Tracking Total 16 | . 1 . 5 16 Tactical Retreats 3 | . . . 1 2 Traps | -11 -10 -9 -9 -9 ------- Run | Scr Mat Mat Sto Gar Traps Triggered 3 | . . . 1 2 Indirectly . | . . . . . Trap Hack Attempts . | . . . . . Triggered . | . . . . . Disarmed . | . . . . . Reprogrammed . | . . . . . Reused . | . . . . . Traps Extracted . | . . . . . Installed . | . . . . . Triggered . | . . . . . Machines | -11 -10 -9 -9 -9 ---------- Run | Scr Mat Mat Sto Gar Machines Disabled 4 | . . . 3 1 Max in Single Turn 1 | . . . 1 1 Garrison Relay 1 | . . . . 1 Machines Sabotaged . | . . . . . Garrisons Compromised . | . . . . . Overloaded Fab Kills . | . . . . . Fab Network Shutdowns . | . . . . . Hacking | -11 -10 -9 -9 -9 --------- Run | Scr Mat Mat Sto Gar Machines Accessed 5 | . 1 . 4 . Terminals 4 | . 1 . 3 . Fabricators . | . . . . . Repair Stations . | . . . . . Recycling Units . | . . . . . Scanalyzers . | . . . . . Garrison Access 1 | . . . 1 . Total Hacks 9 | . 2 . 7 . Successful 8 | . 2 . 6 . Failed 1 | . . . 1 . Catastrophic . | . . . . . Database Lockouts . | . . . . . Manual . | . . . . . Terminals 8 | . 2 . 6 . Fabricators . | . . . . . Repair Stations . | . . . . . Recycling Units . | . . . . . Scanalyzers . | . . . . . Garrison Access 1 | . . . 1 . Terminal Hacks 7 | . 2 . 5 . Open Door 2 | . . . 2 . Alert Level 3 | . 2 . 1 . Unreport Threat 2 | . . . 2 . Fabricator Hacks . | . . . . . Repair Station Hacks . | . . . . . Recycling Unit Hacks . | . . . . . Scanalyzer . | . . . . . Garrison Access Hacks 1 | . . . 1 . Unlock Access 1 | . . . 1 . Unauthorized Hacks . | . . . . . Terminals . | . . . . . Fabricators . | . . . . . Repair Stations . | . . . . . Recycling Units . | . . . . . Scanalyzers . | . . . . . Garrison Access . | . . . . . Data Cores Recovered . | . . . . . Used . | . . . . . Hacking Detections 2 | . 1 . 1 . Full Trace Events . | . . . . . Feedback Events . | . . . . . Feedback Blocked . | . . . . . Robot Schematics Acquired . | . . . . . Robots Built . | . . . . . Matter . | . . . . . Time . | . . . . . Total Robot Build Rating . | . . . . . Part Schematics Acquired . | . . . . . Parts Built . | . . . . . Matter . | . . . . . Time . | . . . . . Total Part Build Rating . | . . . . . Parts Repaired . | . . . . . Time . | . . . . . Parts Recycled . | . . . . . Recycled Matter . | . . . . . Retrieved Matter . | . . . . . Retrieved Components . | . . . . . Parts Scanalyzed . | . . . . . Part Schematics Acquired . | . . . . . Parts Damaged . | . . . . . Bothacking | -11 -10 -9 -9 -9 ------------ Run | Scr Mat Mat Sto Gar Used RIF Installer . | . . . . . Robots Hacked . | . . . . . Non-combat . | . . . . . Combat . | . . . . . Robot Hacks Applied . | . . . . . Relay Couplers Released 3 | . . . . 3 Machine Destruction 3 | . . . . 3 Robots Rewired . | . . . . . Allies Hacked . | . . . . . Hacks Repelled . | . . . . . Allies | -11 -10 -9 -9 -9 -------- Run | Scr Mat Mat Sto Gar Total Allies . | . . . . . Largest Group . | . . . . . Highest-Rated Group . | . . . . . Highest-Rated Ally . | . . . . . Total Orders . | . . . . . Ally Attacks . | . . . . . Total Damage . | . . . . . Kills . | . . . . . Allies Corrupted . | . . . . . Allies Melted . | . . . . . Intel | -11 -10 -9 -9 -9 ------- Run | Scr Mat Mat Sto Gar Robot Analysis Total . | . . . . . Derelict Logs Recovered . | . . . . . Drone Launches . | . . . . . Drone Recoveries . | . . . . . Exploration | -11 -10 -9 -9 -9 ------------- Run | Scr Mat Mat Sto Gar Turns Passed 1151 | 95 144 34 789 89 Spaces Moved 841 | 51 84 21 558 127 Core 16 | 2 . . . 14 Treads 281 | 49 84 21 127 . Legs 192 | . . . 192 . Wheels . | . . . . . Hover . | . . . . . Flight 352 | . . . 239 113 Fastest Speed 32 | 50 160 160 32 32 Average Speed 96 | 155 160 160 92 38 Slowest Speed 175 | 160 160 160 175 100 Overloaded Moves . | . . . . . Propulsion Burnouts . | . . . . . Robots Hopped 1 | . . . 1 . Cave-ins Triggered . | . . . . . Exploration Rate (%) 24 | 5 18 3 66 29 Regions Visited 4 Branch Regions 1 Pre-discovered Areas . | . . . . . Known Exits Taken 1 | . . . 1 . Unknown Exits Taken 3 | 1 1 1 . . Scrap Searched . | . . . . . Spaces Dug . | . . . . . Terrain Destroyed 33 | . . . 33 . Melee . | . . . . . Projectile . | . . . . . AOE 33 | . . . 33 . Actions | -11 -10 -9 -9 -9 --------- Run | Scr Mat Mat Sto Gar Total 1071 | 63 93 22 724 169 Wait 41 | . 3 . 38 . Move 835 | 50 83 20 555 127 Hop 1 | . . . 1 . Pick Up 24 | 6 3 . 11 4 Fast Attach 31 | 6 . . 25 . Attach 5 | . . 2 3 . Detach 7 | . . . 7 . Swap 5 | 1 . . 2 2 Drop 39 | . 3 . 30 6 Fire 40 | . 1 . 39 . Melee 14 | . . . 13 1 Ram . | . . . . . Kick . | . . . . . Crush . | . . . . . Escape Stasis 29 | . . . . 29 Rewire . | . . . . . Trap . | . . . . . Miscellaneous . | . . . . . Route ------- -11/Scrapyard -10/Materials -9/Materials -9/Storage (discovered 2 exits: [*Mat] / Gar) -9/Garrison History --------- Turn | Location | Event 4 | -11/Scrapyard | Discovered new exit (range 16) 96 | -11/Scrapyard | Entered Materials 201 | -10/Materials | Discovered new exit (range 8) 240 | -10/Materials | Entered another Materials area 240 | -9/Materials | Evolved 2 slots: Weapon x2 242 | -9/Materials | Discovered new exit (range 7) 274 | -9/Materials | Entered Storage 836 | -9/Storage | Lost 3 parts (1u2w) 1051 | -9/Storage | Discovered new exit (range 15) 1058 | -9/Storage | Identified exit to Garrison 1063 | -9/Storage | Entered Garrison 1067 | -9/Garrison | Core integrity fell below 50% 1111 | -9/Garrison | Garrison Relay disabled 1124 | -9/Garrison | Triggered checkpoint 1144 | -9/Garrison | Triggered checkpoint 1147 | -9/Garrison | Core integrity fell below 20% 1152 | -9/Garrison | Destroyed by G-34 Mercenary with Small Laser Last Messages --------------- 01111_ Garrison Relay disabled. 01111_ Relay Coupler [Brawler] tumbles out of relay unit. 01111_ Relay Coupler [NC] tumbles out of relay unit. 01114_ J8AM#DXFE6M0NIM&KZGX|EF